{"text_format":"1","workbook":"xlsx","n_sheets":5,"sheets":["Classement Général","Feuille9","Feuille11","Feuille12","Feuille13"],"not_rendered":{"charts":0,"images":0,"macros":1,"external_links":0,"defined_names":1,"comments":0,"pivot_tables":0},"unopened":[],"bounds":{"document_bytes":16777216,"sheet_cells":100000,"rows_first":2000,"rows_last":500,"rows_between":2000,"halvings":0,"cell_chars":16384,"cell_head_chars":4096},"cells_cut":0,"cells_raw":0,"read":"whole","date_system":"1904"}

{"sheet":"Classement Général","index":0,"n_rows":289,"n_cols":16,"rows_kept":289,"cut":false,"hidden":false,"merged":[[1,0,1,11]]}
[]
["CHALLENGE D'HIVER 2022"]
[]
[null,"DF","TM","TAT","TF","DM","DF","TM"]
[null,94,96,96,108,46,84,72,null,null,null,"CLASSEMENT"]
[null,"Joueurs","Joueurs","Joueurs","Joueurs","Joueurs","Joueurs","Joueurs","Joueurs","  ",null,"GENERAL"]
["PARTICIPANTS","1ère","2ème","3ème","4ème","5ème","6ème","7ème","8ème","TOTAL"]
[]
["Stéphane LACLEF",3,3,12,12,3,15,14,null,{"$f":"B9+C9+D9+E9+F9+G9+H9+I9","v":62},null,{"$f":"IF(J9=\"\",\"\",RANK(J9,$J$9:$J$191))","v":1}]
["Michel HUMO",6,3,5,15,0,14,15,null,58,null,2]
["Xavier LECLERC",15,5,16,6,0,3,11,null,56,null,3]
["Jacky REDON",3,3,13,7,16,3,10,null,55,null,4]
["Mickael PINSON",4,11,7,6,11,11,4,null,54,null,5]
["Franck JACQUEL",3,3,4,11,19,3,10,null,53,null,6]
["Yvon THORAVAL",9,3,0,14,7,3,13,null,49,null,7,null,0,"Ne remplir que les colonnes : B > I"]
["Albert DAMOUR",3,18,6,11,3,3,3,null,47,null,8,null,null,"Puis clic sur "]
["Arthur LEVEQUE",15,19,0,3,0,7,0,null,44,null,9,null," "]
["André BRETON",11,9,3,3,3,3,12,null,44,null,9]
["Réjane LEYZOUR",0,17,4,0,0,6,16,null,43,null,11]
["Franck VAN IMSCHOOT",0,17,0,0,0,13,12,null,42,null,12]
["Robert LE CAMUS",3,12,14,3,3,3,3,null,41,null,13]
["Alain RICHARD",7,3,3,14,3,3,7,null,40,null,14]
["Kévin REGNAULT",3,3,9,3,3,10,8,null,39,null,15]
["Bernard ROULE",9,0,0,14,0,3,13,null,39,null,15]
["Nicolas LE VUSUQUE",0,0,0,6,18,11,4,null,39,null,15]
["Anthony RELO",0,3,18,3,0,13,0,null,37,null,18]
["Jérome CONAN",3,7,3,12,0,9,3,null,37,null,18]
["Dylan REGNAULT",3,0,3,0,13,10,8,null,37,null,18]
["Jean-Jacques HENRY",8,3,0,3,14,8,0,null,36,null,21]
["Jean-François LE GUEN",3,3,3,9,12,3,3,null,36,null,21]
["Alain BOSCHET",0,8,3,0,3,6,15,null,35,null,23]
["Renaud FLAMENT",14,3,3,4,0,3,6,null,33,null,24]
["Clément LE GOAS",3,3,3,14,3,3,3,null,32,null,25]
["Eric LAURENT",3,0,3,9,6,8,3,null,32,null,25]
["Yannick ROCHARD",3,0,0,0,0,15,14,null,32,null,25]
["Jean-Marie LEVUSUQUE",3,0,3,3,17,3,0,null,29,null,28]
["Nolan HYVON",0,3,3,11,0,12,0,null,29,null,28]
["David HYVON",0,15,0,0,0,14,0,null,29,null,28]
["Laurent BULLIO",3,14,3,0,3,0,6,null,29,null,28]
["Jérome ANDRE",4,0,3,3,15,3,0,null,28,null,32]
["Jean-Pierre MALAPERT",0,3,16,3,0,3,3,null,{"$f":"B41+C41+D41+E41+F41+G41+H41+I41","v":28},null,{"$f":"IF(J41=\"\",\"\",RANK(J41,$J$9:$J$191))","v":32}]
["Michel GAUBERT",3,13,3,0,3,3,3,null,28,null,32]
["Isabelle SAGORIN",4,4,4,4,4,4,4,null,28,null,32]
["Nadine LE CAER",4,4,4,4,4,4,4,null,28,null,32]
["Martine PERRIN",4,4,4,4,4,4,4,null,28,null,32]
["Gilles DESSILLION",3,3,3,3,3,9,3,null,27,null,38]
["Josette PROFIT",4,4,4,0,0,0,14,null,26,null,39]
["Sylvain CORVELLEC",3,3,19,0,0,0,0,null,25,null,40]
["Ludovic LACLEF",7,0,0,14,0,4,0,null,25,null,40]
["Laurent TOULLIC",3,3,3,4,0,12,0,null,25,null,40]
["Guy LE GUEVEL",10,3,3,3,0,3,3,null,25,null,40]
["Philippe LAVING",10,3,3,3,0,3,3,null,25,null,40]
["Denise REGNAULT",0,4,4,4,4,4,4,null,24,null,45]
["Jérémy LE COQ",3,3,3,3,0,3,9,null,24,null,45]
["Lilian LE BOLLOCH",3,3,17,0,0,0,0,null,23,null,47]
["Nathalie RAULT",13,0,0,10,0,0,0,null,23,null,47]
["Daisy FRIGARA",13,0,0,10,0,0,0,null,23,null,47]
["Bernard DEQUERCADEC",3,3,3,5,3,3,3,null,23,null,47]
["Corentin ROBILLARD",0,0,0,15,0,7,0,null,22,null,51]
["Stéphane BENOIT",0,0,11,0,0,0,11,null,22,null,51]
["Jessy DUMONT",8,0,10,3,0,0,0,null,21,null,53]
["Sylvain TILLY",6,0,0,15,0,0,0,null,21,null,53]
["Vincent BOITTIAUX",0,3,0,3,3,3,9,null,21,null,53]
["Gilles GUERIN",11,0,3,3,0,3,0,null,20,null,56]
["Miloud BENSOUSSI",3,3,3,3,5,3,0,null,20,null,56]
["Aléxandre LE CORFEC",3,0,3,3,8,3,0,null,20,null,56]
["Philippe POENCES",3,3,8,0,0,3,3,null,20,null,56]
["Maryse WALLNER",4,0,4,4,0,4,4,null,20,null,56]
["Guy CROXO",3,3,3,0,4,3,3,null,19,null,61]
["Melly JACQUEL",4,0,0,0,4,0,11,null,19,null,61]
["Joffrey HOUET",3,3,3,3,3,3,0,null,18,null,63]
["Claude BLANCHARD",3,0,9,0,3,3,0,null,18,null,63]
["Christophe AUFFRET",3,3,3,5,0,3,0,null,{"$f":"B73+C73+D73+E73+F73+G73+H73+I73","v":17},null,{"$f":"IF(J73=\"\",\"\",RANK(J73,$J$9:$J$191))","v":65}]
["Sylviane OLIVIER",0,4,0,0,0,0,13,null,17,null,65]
["Lionel BRIEND",3,10,3,0,0,0,0,null,16,null,67]
["Rachid EL MOUSSAOUI",3,0,3,7,3,0,0,null,16,null,67]
["Michelle KERGOURLAY",4,4,4,0,4,0,0,null,16,null,67]
["Jean-Marc BOITTIAUX",3,0,0,12,0,0,0,null,15,null,70]
["Pierrick LE CLEUZIAT",0,3,0,9,0,3,0,null,15,null,70]
["Lionel THORAVAL",3,0,3,3,3,3,0,null,15,null,70]
["François JEAN-BAPTISTE",3,3,3,0,0,3,3,null,15,null,70]
["Gérald LE MANCHEC",3,0,0,3,3,3,3,null,15,null,70]
["Didier NIVET",0,3,0,3,3,3,3,null,15,null,70]
["Frédéric NAGELIN",3,3,0,3,0,0,6,null,15,null,70]
["Michel AZEVEDO",14,0,0,0,0,0,0,null,14,null,77]
["Yohan LACLEF",0,0,0,14,0,0,0,null,14,null,77]
["François AMEDJKOUH",3,3,3,5,0,0,0,null,14,null,77]
["Gilbert LAFFORGUE",0,0,3,0,11,0,0,null,14,null,77]
["Vincent RELO",0,3,4,3,0,4,0,null,14,null,77]
["Aurélien RIOU",13,0,0,0,0,0,0,null,13,null,82]
["Kévin BELLAIR",13,0,0,0,0,0,0,null,13,null,82]
["Hocine HANICHE",4,3,3,3,0,0,0,null,13,null,82]
["Noël LE GLATIN",0,7,3,3,0,0,0,null,13,null,82]
["Pierre-Yves LANDREAU",0,0,0,10,3,0,0,null,13,null,82]
["Pascal LEMAITRE",4,3,3,0,0,3,0,null,13,null,82]
["Laurie TOCQUET",0,0,0,0,0,4,9,null,13,null,82]
["Joël SALLES",3,3,3,0,3,0,0,null,12,null,89]
["Marie-France MILLINER",0,0,4,4,4,0,0,null,12,null,89]
["Marc LE NEPVOU",3,3,3,0,0,3,0,null,12,null,89]
["Patrice GILLOUARD",3,3,0,3,0,3,0,null,12,null,89]
["Laurent REGNAULT",3,3,0,3,0,3,0,null,12,null,89]
["Jean-Claude LE COCGUEN",3,3,0,3,0,0,3,null,12,null,89]
["Gérard DEQUERCADEC",3,3,0,0,0,3,3,null,12,null,89]
["Odile DANGLES",4,0,0,4,0,0,4,null,12,null,89]
["Marie HELLIO",0,4,0,4,0,0,4,null,{"$f":"B105+C105+D105+E105+F105+G105+H105+I105","v":12},null,{"$f":"IF(J105=\"\",\"\",RANK(J105,$J$9:$J$191))","v":89}]
["Céline LANDREAU",0,0,0,11,0,0,0,null,11,null,98]
["Eric TUAL",5,0,0,3,0,3,0,null,11,null,98]
["Karen LE CARDINAL",0,0,0,4,0,0,7,null,11,null,98]
["Laury GUIAVARC'H",0,0,0,10,0,0,0,null,10,null,101]
["Bryan LANDREAU",0,0,0,10,0,0,0,null,10,null,101]
["William REDON",0,0,3,7,0,0,0,null,10,null,101]
["Corentin GUIHO",0,3,0,4,0,0,3,null,10,null,101]
["Daniel HAMON",3,3,3,0,0,0,0,null,9,null,105]
["Christian CHAPIN",3,3,3,0,0,0,0,null,9,null,105]
["Claude JULOU",3,3,3,0,0,0,0,null,9,null,105]
["Patrick LESNE",3,3,3,0,0,0,0,null,9,null,105]
["Guy BAUJARD",3,3,0,3,0,0,0,null,9,null,105]
["Patrick STAMMLER",3,3,0,3,0,0,0,null,9,null,105]
["Gilbert GUEYDAN",3,3,0,3,0,0,0,null,9,null,105]
["Paul LE GLATIN",3,0,3,3,0,0,0,null,9,null,105]
["Gilles LE PROVOST",3,0,3,3,0,0,0,null,9,null,105]
["Marin DUCLOS",0,0,0,3,3,3,0,null,9,null,105]
["Hervé FUSTEC",0,3,0,3,0,3,0,null,9,null,105]
["Chantal REBOURS",4,4,0,0,0,0,0,null,8,null,117]
["Denise DODE",4,4,0,0,0,0,0,null,8,null,117]
["Sandrine GAUTIER",0,0,4,0,0,4,0,null,8,null,117]
["Patrick HERVIOU",5,0,0,0,0,0,3,null,8,null,117]
["Muriel STAMMLER",0,4,0,0,0,0,4,null,8,null,117]
["Gérard GUENVEUR",3,3,0,0,0,0,0,null,6,null,122]
["Gaétan UGUEN",3,0,3,0,0,0,0,null,6,null,122]
["Jean MICHEL",0,0,3,3,0,0,0,null,6,null,122]
["Anthony UGUEN",3,0,3,0,0,0,0,null,6,null,122]
["Chung CHY YUNG",0,0,3,0,3,0,0,null,6,null,122]
["Jean-Michel DUBOURG",3,3,0,0,0,0,0,null,6,null,122]
["Ludovic GICQUEL",0,0,0,0,3,3,0,null,6,null,122]
["Jacky MAHY",3,3,0,0,0,0,0,null,6,null,122]
["Patrick VALLEE",0,0,0,3,0,3,0,null,{"$f":"B137+C137+D137+E137+F137+G137+H137+I137","v":6},null,{"$f":"IF(J137=\"\",\"\",RANK(J137,$J$9:$J$191))","v":122}]
["Jean-Yves ROGE",0,3,3,0,0,0,0,null,6,null,122]
["Alain GODEAU",0,0,0,3,0,3,0,null,6,null,122]
["Eric DUPUY",0,0,0,0,0,6,0,null,6,null,122]
["Alberto TAFANI",0,3,3,0,0,0,0,null,6,null,122]
["Jean-Bernard HINAULT",0,3,3,0,0,0,0,null,6,null,122]
["Lucien NGUYEN",0,3,3,0,0,0,0,null,6,null,122]
["Xavier GALLET",0,0,0,3,0,3,0,null,6,null,122]
["Lucas LEVUSUQUE",0,0,0,0,3,3,0,null,6,null,122]
["Jacques MILLINER",0,0,3,3,0,0,0,null,6,null,122]
["Manu GEORGEAIS",0,5,0,0,0,0,0,null,5,null,140]
["Josette THOUEMENT",4,0,0,0,0,0,0,null,4,null,141]
["Jean-Michel LE NAY",0,4,0,0,0,0,0,null,4,null,141]
["Corinne VAESKEN",0,4,0,0,0,0,0,null,4,null,141]
["Dany MORVAN",0,4,0,0,0,0,0,null,4,null,141]
["Lydia HELLIO",0,4,0,0,0,0,0,null,4,null,141]
["Jeannine RIOU",0,0,0,4,0,0,0,null,4,null,141]
["Malou BRIEND",0,0,0,4,0,0,0,null,4,null,141]
["Julie MALEGOL",0,0,0,4,0,0,0,null,4,null,141]
["Charlotte BURY",0,0,0,4,0,0,0,null,4,null,141]
["Brigitte LEYZOUR",0,4,0,0,0,0,0,null,4,null,141]
["Sylvie GUYOMARD",0,0,0,0,0,4,0,null,4,null,141]
["Laurence DUPUY",0,0,4,0,0,0,0,null,4,null,{"$f":"IF(J159=\"\",\"\",RANK(J159,$J$9:$J$191))","v":141}]
["Corinne GUILLOU",3,0,0,0,0,0,0,null,3,null,153]
["Patrick TAVIGNOT",3,0,0,0,0,0,0,null,3,null,153]
["Mireille Coquillon",3,0,0,0,0,0,0,null,{"$f":"B162+C162+D162+E162+F162+G162+H162+I162","v":3},null,153]
["Jean-Marc BARBE",3,0,0,0,0,0,0,null,3,null,153]
["David LEGOIN",3,0,0,0,0,0,0,null,3,null,153]
["Yohann GLOAGUEN",3,0,0,0,0,0,0,null,3,null,153,null,null,null,"Sandrin"]
["Yohan PHELEP",0,0,3,0,0,0,0,null,3,null,153]
["Walter TOQUET",3,0,0,0,0,0,0,null,3,null,153]
["Jean-Michel GICQUEL",3,0,0,0,0,0,0,null,{"$f":"B168+C168+D168+E168+F168+G168+H168+I168","v":3},null,153]
["Julien LE COQ",3,0,0,0,0,0,0,null,3,null,153]
["Rémy HELLOCO",0,3,0,0,0,0,0,null,3,null,153]
["Alain LE FELIC",0,3,0,0,0,0,0,null,3,null,153]
["Mickael CARVALHO",0,3,0,0,0,0,0,null,3,null,153]
["Alain CARBONNIER",0,3,0,0,0,0,0,null,3,null,153]
["Denis LE CAER",0,3,0,0,0,0,0,null,3,null,153]
["Eric BIENVENUE",0,3,0,0,0,0,0,null,3,null,153]
["Jean-Yves COLLIN",0,3,0,0,0,0,0,null,3,null,153]
["Gérard ZEMMOUR",0,3,0,0,0,0,0,null,3,null,153]
["Jean-Claude ROULET",0,3,0,0,0,0,0,null,{"$f":"B178+C178+D178+E178+F178+G178+H178+I178","v":3},null,153]
["Jean-Luc LE BRIS",0,3,0,0,0,0,0,null,{"$f":"B179+C179+D179+E179+F179+G179+H179+I179","v":3},null,153]
["Michel THOUEMENT",3,0,0,0,0,0,0,null,{"$f":"B180+C180+D180+E180+F180+G180+H180+I180","v":3},null,153]
["Hervé LE VEXIER",0,0,3,0,0,0,null,null,{"$f":"B181+C181+D181+E181+F181+G181+H181+I181","v":3},null,153]
["Régis BOUTIN",0,0,3,0,0,0,0,null,{"$f":"B182+C182+D182+E182+F182+G182+H182+I182","v":3},null,153]
["Laurent FREVILLE",0,0,3,0,0,0,6,null,9,null,105]
["Jean-Luc MARIVINT",0,0,3,0,0,0,0,null,3,null,153]
["Loic PENN",0,0,3,0,0,0,0,null,3,null,153]
["Michel BOCHER",0,0,3,0,0,0,0,null,3,null,153]
["Eric GILLARD",0,0,3,0,0,0,0,null,3,null,153]
["Michel JUHEL",0,0,0,3,0,0,0,null,3,null,153]
["Ludovic COQUILLON",0,0,0,3,0,0,0,null,3,null,153]
["Robert BOIRE",0,0,0,3,0,0,0,null,3,null,153]
["Michel BOISHARDY",0,0,0,3,0,0,0,null,3,null,153]
["Pierrick LAMAQUE",0,0,0,3,0,0,0,null,3,null,153]
["Fernando DA COSTA",0,0,0,0,0,3,0,null,3,null,153]
["Damien LECERF",0,0,0,3,0,0,0,null,3,null,153]
["Raymond CAMPS",0,0,0,0,3,0,0,null,3,null,153]
["Jacquis MOHAMADY",0,0,0,3,0,0,0,null,3,null,153]
["José SOUSA",0,0,0,0,0,3,0,null,3,null,153]
["Thomas LABARDE",0,0,0,3,0,0,0,null,3,null,153]
["Philippe BELLOIR",0,0,0,0,0,3,0,null,3,null,153]
["Thierry PICQUEL",0,0,0,0,3,0,0,null,3,null,153]
["Gilbert HOMMERY",0,0,0,0,3,0,0,null,3,null,{"$f":"IF(J201=\"\",\"\",RANK(J201,$J$9:$J$191))","v":153}]
["Grégory GICQUEL",0,0,0,0,3,0,0,null,{"$f":"B202+C202+D202+E202+F202+G202+H202+I202","v":3},null,153]
["Stéphane HUQUET",0,0,0,3,0,0,0,null,3,null,153]
["Noel BAROU",0,0,0,0,0,3,0,null,3,null,153]
["Karim BELKHIR",0,0,0,0,0,3,0,null,3,null,153]
["Ethan BELKHIR",0,0,0,0,0,3,0,null,3,null,153]
[null,null,null,null,null,null,null,null,null,0,null,{"$error":"#N/A"}]
[null,null,null,null,null,null,null,null,null,0,null,{"$error":"#N/A"}]
[null,null,null,null,null,null,null,null,null,0,null,{"$error":"#N/A"}]
[null,null,null,null,null,null,null,null,null,0,null,{"$error":"#N/A"}]
[null,null,null,null,null,null,null,null,null,0,null,{"$error":"#N/A"}]
[null,null,null,null,null,null,null,null,null,{"$f":"B212+C212+D212+E212+F212+G212+H212+I212","v":0}]
[null,null,null,null,null,null,null,null,null,0]
[null,null,null,null,null,null,null,null,null,0]
[null,null,null,null,null,null,null,null,null,0]
[null,null,null,null,null,null,null,null,null,0]
[null,null,null,null,null,null,null,null,null,0]
[null,null,null,null,null,null,null,null,null,0]
[null,null,null,null,null,null,null,null,null,0]
[null,null,null,null,null,null,null,null,null,0]
[null,null,null,null,null,null,null,null,null,0]
[null,null,null,null,null,null,null,null,null,0]
[null,null,null,null,null,null,null,null,null,0]
[null,null,null,null,null,null,null,null,null,0]
[null,null,null,null,null,null,null,null,null,0]
[null,null,null,null,null,null,null,null,null,0]
[null,null,null,null,null,null,null,null,null,0]
[null,null,null,null,null,null,null,null,null,0]
[null,null,null,null,null,null,null,null,null,0]
[null,null,null,null,null,null,null,null,null,0]
[null,null,null,null,null,null,null,null,null,0]
[null,null,null,null,null,null,null,null,null,0]
[null,null,null,null,null,null,null,null,null,0]
[null,null,null,null,null,null,null,null,null,0]
[null,null,null,null,null,null,null,null,null,0]
[null,null,null,null,null,null,null,null,null,0]
[null,null,null,null,null,null,null,null,null,0]
[null,null,null,null,null,null,null,null,null,0]
[null,null,null,null,null,null,null,null,null,0]
[null,null,null,null,null,null,null,null,null,0]
[null,null,null,null,null,null,null,null,null,0]
[null,null,null,null,null,null,null,null,null,0]
[null,null,null,null,null,null,null,null,null,0]
[null,null,null,null,null,null,null,null,null,0]
[null,null,null,null,null,null,null,null,null,0]
[null,null,null,null,null,null,null,null,null,0]
[null,null,null,null,null,null,null,null,null,0]
[null,null,null,null,null,null,null,null,null,0]
[null,null,null,null,null,null,null,null,null,0]
[null,null,null,null,null,null,null,null,null,0]
[null,null,null,null,null,null,null,null,null,0]
[null,null,null,null,null,null,null,null,null,0]
[null,null,null,null,null,null,null,null,null,0]
[null,null,null,null,null,null,null,null,null,0]
[null,null,null,null,null,null,null,null,null,0]
[null,null,null,null,null,null,null,null,null,0]
[null,null,null,null,null,null,null,null,null,0]
[null,null,null,null,null,null,null,null,null,0]
[null,null,null,null,null,null,null,null,null,0]
[null,null,null,null,null,null,null,null,null,0]
[null,null,null,null,null,null,null,null,null,0]
[null,null,null,null,null,null,null,null,null,0]
[null,null,null,null,null,null,null,null,null,0]
[null,null,null,null,null,null,null,null,null,0]
[null,null,null,null,null,null,null,null,null,0]
[null,null,null,null,null,null,null,null,null,{"$f":"B266+C266+D266+E266+F266+G266+H266+I266","v":0}]
[null,null,null,null,null,null,null,null,null,0]
[null,null,null,null,null,null,null,null,null,0]
[null,null,null,null,null,null,null,null,null,0]
[null,null,null,null,null,null,null,null,null,0]
[null,null,null,null,null,null,null,null,null,0]
[null,null,null,null,null,null,null,null,null,0]
[null,null,null,null,null,null,null,null,null,0]
[null,null,null,null,null,null,null,null,null,0]
[null,null,null,null,null,null,null,null,null,0]
[null,null,null,null,null,null,null,null,null,0]
[null,null,null,null,null,null,null,null,null,0]
[null,null,null,null,null,null,null,null,null,0]
[null,null,null,null,null,null,null,null,null,0]
[null,null,null,null,null,null,null,null,null,0]
[null,null,null,null,null,null,null,null,null,0]
[null,null,null,null,null,null,null,null,null,0]
[null,null,null,null,null,null,null,null,null,0]
[null,null,null,null,null,null,null,null,null,0]
[null,null,null,null,null,null,null,null,null,0]
[null,null,null,null,null,null,null,null,null,0]
[null,null,null,null,null,null,null,null,null,0]
[null,null,null,null,null,null,null,null,null,0]
[null,null,null,null,null,null,null,null,null,0]

{"sheet":"Feuille9","index":1,"n_rows":0,"n_cols":0,"rows_kept":0,"cut":false,"hidden":false,"merged":[]}

{"sheet":"Feuille11","index":2,"n_rows":0,"n_cols":0,"rows_kept":0,"cut":false,"hidden":false,"merged":[]}

{"sheet":"Feuille12","index":3,"n_rows":0,"n_cols":0,"rows_kept":0,"cut":false,"hidden":false,"merged":[]}

{"sheet":"Feuille13","index":4,"n_rows":0,"n_cols":0,"rows_kept":0,"cut":false,"hidden":false,"merged":[]}